Workbook

Sheet FP PiP 1
H1: Obrazac JLP(R)S FP-PiP 1

Sheet FP PiP 2
N1: Obrazac JLP(R)S FP-PiP 2

Sheet FP Ril
A1: Financijski plan - Plan rashoda i izdataka | K1: Obrazac JLP(R)S FP-RiI
A3: Korisnik proračuna
A4: SREDNJA ŠKOLA CENTAR ZA ODGOJ I OBRAZOVANJE-ZAGREB Zagorska 14
A6: Prihodi i primici | D6: Plan 2017. | E6: Procjena 2018. | F6: Procjena 2019.
A8: Opći prihodi i primici Min. +grad | D8: =SUM(D43+E43) -> 7466800
A9: Vlastiti prihodi - Prihodi ostvareni obavljanjem osnovnih i ostalih poslova vlastite djelatnosti | D9: =SUM(I43) -> 30000
A10: Prihodi za posebne namjene | D10: =SUM(F43) -> 132500
A11: Pomoći
A12: Donacije | D12: =SUM(H43) -> 0
A13: Prihodi od prodaje ili zamjene nefinancijjske imovine i naknade s naslova osiguranja
A14: Namjenski primici
A16: Ukupno | D16: =SUM(D8:D14) -> 7629300 | E16: =SUM(K43) -> 7640743.95 | F16: =SUM(L43) -> 7811896.614
A17: Brojčana oznaka i naziv glavnog programa
A18: Brojčana oznaka i naziv programa
A19: Brojčana oznaka i naziv aktivnosti/tekućeg ili kapitalnog projekta
L20: u kunama
A23: Račun rashoda/ izdatka | B23: Naziv računa | C23: PLAN 2017. | D23: Opći prihodi i primici-Grad | E23: Opći prihodi i primici-Min. | F23: Prihodi za posebne namjene | G23: Pomoći | H23: Donacije | I23: Vlastiti prih. | J23: Namjenski primici | K23: PROCJENA 2018. | L23: PROCJENA 2019. | M23: Procjena 2005. | N23: Procjena 2006.
A24: 31 | B24: Rashodi za zaposlene | C24: =SUM(C25:C28) -> 6670000 | D24: =SUM(D25:D28) -> 0 | E24: =SUM(E25:E28) -> 6670000 | F24: =SUM(F25:F28) -> 0 | G24: 0 | H24: 0 | I24: 0 | J24: 0 | K24: =SUM(C24*1.0015) -> 6680005 | L24: =SUM(K24*1.0224) -> 6829637.112 | M24: =SUM(M25:M29) -> 0 | N24: =SUM(N25:N29) -> 0
A25: 311 | B25: Plaće | C25: 5600000 | D25: 0 | E25: 5600000 | M25: 0 | N25: 0
A26: 312 | B26: Ostali rashodi za zaposlene | C26: 100000 | D26: 0 | E26: 100000 | M26: 0 | N26: 0
A27: 313 | B27: Doprinosi na plaće | C27: 970000 | D27: 0 | E27: 970000 | M27: 0 | N27: 0
M28: 0 | N28: 0
A29: 32 | B29: Materijalni rashodi | C29: =SUM(D29:J29) -> 922500 | D29: =SUM(D30:D33) -> 711500 | E29: 48500 | F29: 132500 | G29: =SUM(G30:G33) -> 0 | H29: =SUM(H30:H33) -> 0 | I29: 30000 | J29: =SUM(J30:J33) -> 0 | K29: =SUM(C29*1.0015) -> 923883.75 | L29: =SUM(K29*1.0224) -> 944578.746 | M29: 0 | N29: 0
A30: 321 | B30: Naknada troškova zaposl. | C30: 189000 | D30: 189000 | M30: =SUM(M31:M44) -> 0 | N30: =SUM(N31:N44) -> 0
A31: 322 | B31: Rashodi za materijal i energiju | C31: 389000 | D31: 237000 | E31: 26000 | F31: 126000 | I31: 30000 | M31: 0 | N31: 0
A32: 323 | B32: Rashodi za usluge | C32: 225000 | D32: 225000 | M32: 0 | N32: 0
A33: 329 | B33: Ost. Nespom rash. Poslov. | C33: 89500 | D33: 60500 | E33: 22500 | F33: 6500 | M33: 0 | N33: 0
A34: 34 | B34: Financijski rashodi | C34: =SUM(C35:C37) -> 11800 | D34: =SUM(D35:D37) -> 11800 | E34: =E35 -> 0 | F34: 0 | G34: 0 | H34: 0 | I34: 0 | J34: 0 | K34: =SUM(C34*1.0015) -> 11817.7 | L34: =SUM(K34*1.0224) -> 12082.41648 | M34: 0 | N34: 0
A35: 343 | B35: Ostali fin. Izdaci | C35: 3800 | D35: 3800 | M35: 0 | N35: 0
A36: 372 | B36: Nakn.a građ. I kuć. prijevoz učenika. | C36: 8000 | D36: 8000 | M36: 0 | N36: 0
M37: 0 | N37: 0
A38: 42 | B38: Rashodi za nabavu dug.imov. | C38: =SUM(C39:C40) -> 25000 | D38: 25000 | E38: =E39 -> 0 | F38: 0 | G38: 0 | H38: 0 | I38: 0 | J38: 0 | K38: =SUM(C38*1.0015) -> 25037.5 | L38: =SUM(K38*1.0224) -> 25598.34 | M38: 0 | N38: 0
A39: 422 | B39: Postrojenja i oprema | C39: 25000 | D39: 25000 | M39: 0 | N39: 0
A40: …. | M40: 0 | N40: 0
A41: 51 | C41: =C42 -> 0 | D41: 0 | E41: 0 | F41: 0 | G41: 0 | H41: 0 | I41: 0 | J41: 0 | K41: 0 | L41: 0 | M41: 0 | N41: 0
A42: 511 | M42: 0 | N42: 0
B43: UKUPNO A/Tpr./Kpr. | C43: =SUM(C29+C24+C34+C38+C41) -> 7629300 | D43: 748300 | E43: 6718500 | F43: 132500 | G43: 0 | H43: 0 | I43: 30000 | J43: 0 | K43: 7640743.95 | L43: =SUM(L29+L24+L34+L38+L41) -> 7811896.614 | M43: 0 | N43: 0
B44: Sveukupno KP | C44: =SUM(C29+C24+C34+C38+C41) -> 7629300 | D44: =SUM(D29+D24+D34+D38+D41) -> 748300 | E44: =SUM(E29+E24+E34+E38+E41) -> 6718500 | F44: =SUM(F29+F24+F34+F38+F41) -> 132500 | G44: =G25+G30+G35 -> 0 | H44: =H25+H30+H35 -> 0 | I44: =SUM(I29+I24+I34+I38+I41) -> 30000 | J44: =J25+J30+J35 -> 0 | K44: =SUM(K29+K24+K34+K38+K41) -> 7640743.95 | L44: =SUM(L29+L24+L34+L38+L41) -> 7811896.614 | M44: 0 | N44: 0
C47: U Zagrebu ,19.12.2016 god. | D47: 2016 god. | J47: Ravnateljica:
